[Event "*** Titled Tuesday Blitz"]
[Site "Chess.com"]
[Date "2019.08.06"]
[Round "10"]
[White "VladDobrov"]
[Black "HomayoonTofighi"]
[Result "1-0"]
[WhiteElo "2967"]
[BlackElo "2879"]
[TimeControl "180+2"]
[EndTime "15:21:44 PDT"]
[Termination "VladDobrov won by resignation"]

1. d4 {[%clk 0:03:01.9]} 1... Nf6 {[%clk 0:02:59.3]} 2. c4 {[%clk 0:03:03.1]}
2... e6 {[%clk 0:03:00.5]} 3. Nf3 {[%clk 0:03:04.4]} 3... Bb4+ {[%clk 0:02:56]}
4. Nbd2 {[%clk 0:03:05.3]} 4... b6 {[%clk 0:02:54.7]} 5. a3 {[%clk 0:03:06.5]}
5... Bxd2+ {[%clk 0:02:55.6]} 6. Qxd2 {[%clk 0:03:08.4]} 6... Bb7 {[%clk
0:02:57.5]} 7. e3 {[%clk 0:03:09.9]} 7... Ne4 {[%clk 0:02:57.8]} 8. Qc2 {[%clk
0:03:10.4]} 8... O-O {[%clk 0:02:57.9]} 9. Be2 {[%clk 0:03:11.2]} 9... d6 {[%clk
0:02:58]} 10. O-O {[%clk 0:03:12]} 10... Nd7 {[%clk 0:02:59.1]} 11. b4 {[%clk
0:03:13.6]} 11... f5 {[%clk 0:02:55.8]} 12. Bb2 {[%clk 0:03:14.6]} 12... Rf6
{[%clk 0:02:51.1]} 13. d5 {[%clk 0:03:15.9]} 13... Rg6 {[%clk 0:02:46.1]} 14.
Nd4 {[%clk 0:03:03.1]} 14... exd5 {[%clk 0:02:35.2]} 15. Nxf5 {[%clk 0:02:43.7]}
15... Qg5 {[%clk 0:02:30.9]} 16. Ng3 {[%clk 0:02:42.5]} 16... Nxg3 {[%clk
0:02:25.7]} 17. hxg3 {[%clk 0:02:39.6]} 17... Rf8 {[%clk 0:02:10.5]} 18. cxd5
{[%clk 0:02:37.1]} 18... Nf6 {[%clk 0:02:02]} 19. e4 {[%clk 0:02:18.5]} 19...
Rf7 {[%clk 0:01:47.1]} 20. Rac1 {[%clk 0:02:14.7]} 20... Rh6 {[%clk 0:01:40.5]}
21. Qd3 {[%clk 0:01:35.3]} 21... Ng4 {[%clk 0:01:28.8]} 22. Bxg4 {[%clk
0:01:35]} 22... Qxg4 {[%clk 0:01:30.7]} 23. f4 {[%clk 0:01:35.9]} 23... Qh5
{[%clk 0:01:26.4]} 24. b5 {[%clk 0:01:29.1]} 24... Re7 {[%clk 0:01:12.5]} 25. f5
{[%clk 0:01:26.8]} 25... Bc8 {[%clk 0:01:08.6]} 26. Rf4 {[%clk 0:01:27.2]} 26...
Rf7 {[%clk 0:01:01.6]} 27. Rh4 {[%clk 0:01:23.4]} 27... Qg5 {[%clk 0:01:01.7]}
28. Rxh6 {[%clk 0:01:24.5]} 28... Qxh6 {[%clk 0:01:03.6]} 29. Rf1 {[%clk
0:01:23.7]} 29... Qh5 {[%clk 0:01:02.5]} 30. Rf4 {[%clk 0:01:22.7]} 30... h6
{[%clk 0:00:58.8]} 31. a4 {[%clk 0:01:22.1]} 31... Qg5 {[%clk 0:00:57.9]} 32.
Qf3 {[%clk 0:01:21.7]} 32... Qe7 {[%clk 0:00:59.1]} 33. Bd4 {[%clk 0:01:21.6]}
33... a6 {[%clk 0:00:58.8]} 34. f6 {[%clk 0:01:21.4]} 34... gxf6 {[%clk
0:00:56.8]} 35. Bxf6 {[%clk 0:01:22.6]} 35... Qe8 {[%clk 0:00:50.9]} 36. Qh5
{[%clk 0:01:23.3]} 36... Kh7 {[%clk 0:00:50.1]} 37. Bg5 {[%clk 0:01:21.5]} 1-0

[Event "*** Titled Tuesday Blitz"]
[Site "Chess.com"]
[Date "2019.08.06"]
[Round "10"]
[White "Faustregel"]
[Black "Winehouse83"]
[Result "0-1"]
[WhiteElo "2510"]
[BlackElo "2611"]
[TimeControl "180+2"]
[EndTime "15:21:45 PDT"]
[Termination "Winehouse83 won by resignation"]

1. e4 {[%clk 0:02:59.3]} 1... e5 {[%clk 0:03:00.6]} 2. Nf3 {[%clk 0:03:00.2]}
2... Nc6 {[%clk 0:03:01.7]} 3. Bc4 {[%clk 0:03:01.3]} 3... Bc5 {[%clk
0:03:01.9]} 4. d3 {[%clk 0:03:00.7]} 4... Nf6 {[%clk 0:03:02.9]} 5. h3 {[%clk
0:03:02]} 5... O-O {[%clk 0:03:03.4]} 6. c3 {[%clk 0:02:58.7]} 6... a5 {[%clk
0:02:52.2]} 7. Qe2 {[%clk 0:02:54.3]} 7... h6 {[%clk 0:02:47.4]} 8. Nbd2 {[%clk
0:02:52.8]} 8... d6 {[%clk 0:02:46.2]} 9. Nf1 {[%clk 0:02:53.1]} 9... Be6 {[%clk
0:02:46.4]} 10. Bxe6 {[%clk 0:02:44.9]} 10... fxe6 {[%clk 0:02:48.3]} 11. Be3
{[%clk 0:02:45.8]} 11... b6 {[%clk 0:02:34.8]} 12. a3 {[%clk 0:02:37]} 12...
Bxe3 {[%clk 0:02:25.8]} 13. Nxe3 {[%clk 0:02:37.8]} 13... Nh5 {[%clk 0:02:13.4]}
14. g3 {[%clk 0:02:27]} 14... Qf6 {[%clk 0:02:04.6]} 15. Nd2 {[%clk 0:02:21.6]}
15... Qg6 {[%clk 0:01:36.9]} 16. Qg4 {[%clk 0:02:21.3]} 16... Ne7 {[%clk
0:01:30.7]} 17. Qh4 {[%clk 0:02:11]} 17... Rf7 {[%clk 0:01:25.9]} 18. Rh2 {[%clk
0:01:54.7]} 18... a4 {[%clk 0:00:51.3]} 19. Rg2 {[%clk 0:01:51.5]} 19... Raf8
{[%clk 0:00:44.3]} 20. Ke2 {[%clk 0:01:43.1]} 20... d5 {[%clk 0:00:14.1]} 21.
Ng4 {[%clk 0:01:37.3]} 21... dxe4 {[%clk 0:00:12.1]} 22. dxe4 {[%clk 0:01:34.6]}
22... Nc6 {[%clk 0:00:11.5]} 23. Rd1 {[%clk 0:01:14.4]} 23... Rd7 {[%clk
0:00:12.1]} 24. f3 {[%clk 0:01:15.7]} 24... Qf7 {[%clk 0:00:12.5]} 25. Rf2
{[%clk 0:01:12.3]} 25... Rfd8 {[%clk 0:00:13.5]} 26. Ke1 {[%clk 0:01:12.8]}
26... Ne7 {[%clk 0:00:14.5]} 27. Ne3 {[%clk 0:01:09.3]} 27... g5 {[%clk
0:00:14.6]} 28. Qg4 {[%clk 0:01:09.2]} 28... Nf6 {[%clk 0:00:15.9]} 0-1

[Event "*** Titled Tuesday Blitz"]
[Site "Chess.com"]
[Date "2019.08.06"]
[Round "10"]
[White "KacperPolOK"]
[Black "Witaliss"]
[Result "1/2-1/2"]
[WhiteElo "2412"]
[BlackElo "2412"]
[TimeControl "180+2"]
[EndTime "15:21:59 PDT"]
[Termination "Game drawn by agreement"]

1. e4 {[%clk 0:03:00.4]} 1... c6 {[%clk 0:03:00.2]} 2. d4 {[%clk 0:02:56.8]}
2... d5 {[%clk 0:03:01]} 3. Nc3 {[%clk 0:02:58.5]} 3... dxe4 {[%clk 0:03:01.3]}
4. Nxe4 {[%clk 0:03:00.2]} 4... Nd7 {[%clk 0:03:02.1]} 5. Ng5 {[%clk 0:02:59.4]}
5... Ngf6 {[%clk 0:03:02.1]} 6. Bd3 {[%clk 0:03:00.4]} 6... e6 {[%clk
0:03:02.8]} 7. Qe2 {[%clk 0:03:01.3]} 7... Bd6 {[%clk 0:03:03.8]} 8. N1f3 {[%clk
0:03:02.4]} 8... h6 {[%clk 0:03:04.1]} 9. Ne4 {[%clk 0:03:03.7]} 9... Nxe4
{[%clk 0:03:05.2]} 10. Qxe4 {[%clk 0:03:05.6]} 10... Nf6 {[%clk 0:03:05.9]} 11.
Qh4 {[%clk 0:03:06.7]} 11... Nd5 {[%clk 0:03:05.7]} 12. Qxd8+ {[%clk 0:03:05]}
12... Kxd8 {[%clk 0:03:06.3]} 13. c4 {[%clk 0:03:06.6]} 13... Nf4 {[%clk
0:03:00]} 14. Bf1 {[%clk 0:03:05.8]} 14... b6 {[%clk 0:02:45.8]} 15. Be3 {[%clk
0:03:05.6]} 15... Bb7 {[%clk 0:02:43.7]} 16. g3 {[%clk 0:02:39.2]} 16... Ng6
{[%clk 0:02:42.5]} 17. c5 {[%clk 0:02:40.3]} 17... Bc7 {[%clk 0:02:40.6]} 18.
Bc4 {[%clk 0:02:36.7]} 18... Ne7 {[%clk 0:02:40.3]} 19. Ne5 {[%clk 0:02:34.3]}
19... Bxe5 {[%clk 0:02:39.9]} 20. dxe5 {[%clk 0:02:35.2]} 20... b5 {[%clk
0:02:37.2]} 21. Be2 {[%clk 0:02:29.1]} 21... Nd5 {[%clk 0:02:37]} 22. Rd1 {[%clk
0:02:14.4]} 22... Ke7 {[%clk 0:02:34.6]} 23. Bf3 {[%clk 0:02:10.3]} 23... a5
{[%clk 0:02:30]} 24. Ke2 {[%clk 0:02:06.4]} 24... a4 {[%clk 0:02:29.9]} 25. Bxd5
{[%clk 0:02:01.5]} 25... cxd5 {[%clk 0:02:26]} 26. Bd4 {[%clk 0:01:57.7]} 26...
Bc6 {[%clk 0:02:25.9]} 27. Ke3 {[%clk 0:01:58.8]} 27... h5 {[%clk 0:02:26]} 28.
f4 {[%clk 0:01:58.9]} 28... g6 {[%clk 0:02:25.1]} 29. Rhf1 {[%clk 0:01:59.9]}
29... b4 {[%clk 0:02:23]} 30. h3 {[%clk 0:02:00.5]} 30... b3 {[%clk 0:02:21.8]}
31. a3 {[%clk 0:02:01.3]} 31... Bb5 {[%clk 0:02:17.6]} 32. Rh1 {[%clk
0:02:01.4]} 32... Rac8 {[%clk 0:02:17.3]} 33. g4 {[%clk 0:02:01.2]} 33... hxg4
{[%clk 0:02:16.4]} 34. hxg4 {[%clk 0:02:02.5]} 34... Bc6 {[%clk 0:02:13.9]} 35.
Rdf1 {[%clk 0:01:51.9]} 35... Bb5 {[%clk 0:02:13.3]} 36. Rc1 {[%clk 0:01:51.5]}
36... Bc6 {[%clk 0:02:13.2]} 37. Kd2 {[%clk 0:01:47.8]} 37... Rcg8 {[%clk
0:02:08.4]} 38. Kc3 {[%clk 0:01:40]} 38... Rb8 {[%clk 0:02:07.7]} 39. Rcf1
{[%clk 0:01:35.4]} 39... Bb5 {[%clk 0:02:07.2]} 40. Re1 {[%clk 0:01:36.8]} 40...
Kd7 {[%clk 0:02:05.8]} 41. Rxh8 {[%clk 0:01:30.5]} 41... Rxh8 {[%clk 0:02:04.8]}
42. f5 {[%clk 0:01:32.2]} 42... gxf5 {[%clk 0:02:04.7]} 43. gxf5 {[%clk
0:01:33.3]} 43... Kc6 {[%clk 0:02:01.2]} 44. f6 {[%clk 0:01:30]} 44... Rh3+
{[%clk 0:02:00.8]} 45. Kb4 {[%clk 0:01:31.3]} 45... Rh4 {[%clk 0:02:01.2]} 46.
Kc3 {[%clk 0:01:31.1]} 46... Rh3+ {[%clk 0:02:01.3]} 47. Re3 {[%clk 0:01:23.5]}
47... Rxe3+ {[%clk 0:02:01]} 48. Bxe3 {[%clk 0:01:24.9]} 48... Kb7 {[%clk
0:01:59.8]} 49. Kb4 {[%clk 0:01:21.7]} 49... Bc6 {[%clk 0:02:00.5]} 50. Ka5
{[%clk 0:01:22.5]} 50... Ka7 {[%clk 0:02:01]} 51. Bh6 {[%clk 0:01:22.3]} 51...
Kb7 {[%clk 0:02:01.7]} 52. Bf8 {[%clk 0:01:23.1]} 52... Bd7 {[%clk 0:02:00.8]}
53. Be7 {[%clk 0:01:23.1]} 53... Bc6 {[%clk 0:02:01.6]} 54. Kb4 {[%clk
0:01:21.2]} 54... Kc7 {[%clk 0:01:58.5]} 55. Bd6+ {[%clk 0:01:17.9]} 55... Kb7
{[%clk 0:01:59.2]} 56. Kc3 {[%clk 0:01:18.1]} 56... Kc8 {[%clk 0:01:59.5]} 57.
Bf8 {[%clk 0:01:16.7]} 57... Kb7 {[%clk 0:01:59]} 58. Kb4 {[%clk 0:01:15.6]}
1/2-1/2

[Event "*** Titled Tuesday Blitz"]
[Site "Chess.com"]
[Date "2019.08.06"]
[Round "10"]
[White "hurricane7791"]
[Black "albi1999"]
[Result "1-0"]
[WhiteElo "2721"]
[BlackElo "2512"]
[TimeControl "180+2"]
[EndTime "15:22:02 PDT"]
[Termination "hurricane7791 won by resignation"]

1. d4 {[%clk 0:03:01.9]} 1... Nf6 {[%clk 0:03:00.3]} 2. c4 {[%clk 0:03:01.5]}
2... e6 {[%clk 0:03:01.7]} 3. Nc3 {[%clk 0:03:02.3]} 3... Bb4 {[%clk 0:03:02.9]}
4. Qc2 {[%clk 0:02:56.2]} 4... d5 {[%clk 0:03:02.9]} 5. cxd5 {[%clk 0:02:56.8]}
5... exd5 {[%clk 0:03:04.8]} 6. Bg5 {[%clk 0:02:57.5]} 6... h6 {[%clk 0:03:06]}
7. Bh4 {[%clk 0:02:58.1]} 7... c5 {[%clk 0:02:34.5]} 8. dxc5 {[%clk 0:02:55.4]}
8... g5 {[%clk 0:02:35.2]} 9. Bg3 {[%clk 0:02:56.6]} 9... Ne4 {[%clk 0:02:35.4]}
10. e3 {[%clk 0:02:57.1]} 10... Qa5 {[%clk 0:02:33.9]} 11. Rc1 {[%clk 0:02:50]}
11... Qxa2 {[%clk 0:02:26.2]} 12. Bb5+ {[%clk 0:02:41.7]} 12... Bd7 {[%clk
0:02:27.1]} 13. Bxd7+ {[%clk 0:02:42.2]} 13... Nxd7 {[%clk 0:02:27.5]} 14. Ne2
{[%clk 0:02:44.1]} 14... Nxc3 {[%clk 0:02:27.3]} 15. Nxc3 {[%clk 0:02:44.7]}
15... Qc4 {[%clk 0:02:23.8]} 16. Rd1 {[%clk 0:02:42.8]} 16... Nxc5 {[%clk
0:02:21.8]} 17. Rd4 {[%clk 0:02:42.1]} 17... Qa6 {[%clk 0:01:45.4]} 18. h4
{[%clk 0:02:42]} 18... Bxc3+ {[%clk 0:00:53.5]} 19. Qxc3 {[%clk 0:02:29.2]}
19... Rc8 {[%clk 0:00:52.8]} 20. hxg5 {[%clk 0:02:24.5]} 20... Nd3+ {[%clk
0:00:42.5]} 21. Qxd3 {[%clk 0:02:18.5]} 21... Rc1+ {[%clk 0:00:27.8]} 22. Kd2
{[%clk 0:02:11.8]} 22... Qxd3+ {[%clk 0:00:26.9]} 23. Kxc1 {[%clk 0:02:07.5]}
23... Qb3 {[%clk 0:00:24.8]} 24. gxh6 {[%clk 0:02:04.9]} 24... Ke7 {[%clk
0:00:25.3]} 25. h7 {[%clk 0:01:52.3]} 25... Rc8+ {[%clk 0:00:19.3]} 26. Kb1
{[%clk 0:01:52.7]} 26... Rc2 {[%clk 0:00:20.5]} 27. Re4+ {[%clk 0:01:50.7]}
27... dxe4 {[%clk 0:00:19.3]} 28. h8=Q {[%clk 0:01:51.9]} 28... Qd3 {[%clk
0:00:18.1]} 29. Bh4+ {[%clk 0:01:45.6]} 29... Ke6 {[%clk 0:00:12.8]} 30. Qe8+
{[%clk 0:01:46.2]} 30... Kd5 {[%clk 0:00:13.4]} 31. Qd7+ {[%clk 0:01:29]} 31...
Kc4 {[%clk 0:00:13.8]} 32. Qxf7+ {[%clk 0:01:14.2]} 32... Kc5 {[%clk 0:00:12.2]}
33. Qc7+ {[%clk 0:01:13.8]} 33... Kd5 {[%clk 0:00:08.3]} 34. Qxc2 {[%clk
0:01:14.9]} 1-0

[Event "*** Titled Tuesday Blitz"]
[Site "Chess.com"]
[Date "2019.08.06"]
[Round "10"]
[White "qqwow"]
[Black "Manukyan_Artak"]
[Result "1-0"]
[WhiteElo "2545"]
[BlackElo "2400"]
[TimeControl "180+2"]
[EndTime "15:22:08 PDT"]
[Termination "qqwow won by checkmate"]

1. d4 {[%clk 0:03:01.8]} 1... Nf6 {[%clk 0:02:59.4]} 2. c4 {[%clk 0:03:02.5]}
2... e6 {[%clk 0:03:00.5]} 3. Nc3 {[%clk 0:03:03.6]} 3... Bb4 {[%clk 0:03:00.4]}
4. a3 {[%clk 0:03:03.7]} 4... Bxc3+ {[%clk 0:03:01.4]} 5. bxc3 {[%clk
0:03:05.6]} 5... c5 {[%clk 0:03:02.3]} 6. e3 {[%clk 0:03:03]} 6... d6 {[%clk
0:03:02.3]} 7. Bd3 {[%clk 0:03:04.5]} 7... b6 {[%clk 0:03:02]} 8. Ne2 {[%clk
0:03:05.9]} 8... Bb7 {[%clk 0:03:03.1]} 9. f3 {[%clk 0:03:06.2]} 9... Nbd7
{[%clk 0:03:01.6]} 10. O-O {[%clk 0:03:07.3]} 10... e5 {[%clk 0:03:02.3]} 11.
Ng3 {[%clk 0:03:00.6]} 11... g6 {[%clk 0:02:55.9]} 12. f4 {[%clk 0:02:55.8]}
12... exd4 {[%clk 0:02:55.2]} 13. cxd4 {[%clk 0:02:56.4]} 13... O-O {[%clk
0:02:53.9]} 14. d5 {[%clk 0:02:55]} 14... b5 {[%clk 0:02:51.8]} 15. e4 {[%clk
0:02:53.1]} 15... bxc4 {[%clk 0:02:52.4]} 16. Bxc4 {[%clk 0:02:54.1]} 16... Nb6
{[%clk 0:02:48.4]} 17. Ba2 {[%clk 0:02:48.2]} 17... Re8 {[%clk 0:02:22.9]} 18.
Qc2 {[%clk 0:02:38.2]} 18... c4 {[%clk 0:01:52.2]} 19. Bb2 {[%clk 0:02:37.8]}
19... Ng4 {[%clk 0:01:52.7]} 20. h3 {[%clk 0:02:25.6]} 20... Nh6 {[%clk
0:01:45.9]} 21. Qc3 {[%clk 0:02:24]} 21... f6 {[%clk 0:01:46.9]} 22. Qxf6 {[%clk
0:02:19.2]} 22... Qxf6 {[%clk 0:01:48.8]} 23. Bxf6 {[%clk 0:02:20.6]} 23... Rac8
{[%clk 0:01:45.8]} 24. Rac1 {[%clk 0:02:06.1]} 24... Ba6 {[%clk 0:01:42.1]} 25.
Rfd1 {[%clk 0:01:56.1]} 25... Nf7 {[%clk 0:01:34.5]} 26. Re1 {[%clk 0:01:50.9]}
26... Bb5 {[%clk 0:01:19.9]} 27. h4 {[%clk 0:01:47.9]} 27... Ba4 {[%clk
0:01:17.3]} 28. h5 {[%clk 0:01:47.8]} 28... Bb3 {[%clk 0:01:16.7]} 29. Bb1
{[%clk 0:01:47.6]} 29... Na4 {[%clk 0:01:11.5]} 30. hxg6 {[%clk 0:01:46.3]}
30... hxg6 {[%clk 0:01:12]} 31. e5 {[%clk 0:01:45.6]} 31... dxe5 {[%clk
0:01:08.8]} 32. fxe5 {[%clk 0:01:47.5]} 32... c3 {[%clk 0:01:09.7]} 33. Bxg6
{[%clk 0:01:46.7]} 33... Bxd5 {[%clk 0:01:09]} 34. Nf5 {[%clk 0:01:38.5]} 34...
Nb2 {[%clk 0:00:59.8]} 35. Re3 {[%clk 0:01:16.3]} 35... c2 {[%clk 0:00:41.2]}
36. Rh3 {[%clk 0:01:16.3]} 36... Rc4 {[%clk 0:00:19.4]} 37. Bh7+ {[%clk
0:01:15.3]} 37... Kf8 {[%clk 0:00:19.9]} 38. Bg7# {[%clk 0:01:16.7]} 1-0

[Event "*** Titled Tuesday Blitz"]
[Site "Chess.com"]
[Date "2019.08.06"]
[Round "10"]
[White "capatl"]
[Black "StephenDedalus83"]
[Result "0-1"]
[WhiteElo "2553"]
[BlackElo "2791"]
[TimeControl "180+2"]
[EndTime "15:22:24 PDT"]
[Termination "StephenDedalus83 won by resignation"]

1. Nf3 {[%clk 0:02:57.7]} 1... g6 {[%clk 0:02:59.5]} 2. c4 {[%clk 0:02:50.5]}
2... Bg7 {[%clk 0:03:01.4]} 3. Nc3 {[%clk 0:02:51.3]} 3... c5 {[%clk 0:03:00.8]}
4. g3 {[%clk 0:02:50.5]} 4... Nc6 {[%clk 0:03:01.2]} 5. Bg2 {[%clk 0:02:51.6]}
5... e5 {[%clk 0:03:02.8]} 6. O-O {[%clk 0:02:46]} 6... Nge7 {[%clk 0:03:04]} 7.
d3 {[%clk 0:02:41.2]} 7... d6 {[%clk 0:03:04.9]} 8. Rb1 {[%clk 0:02:36.8]} 8...
O-O {[%clk 0:03:04.6]} 9. a3 {[%clk 0:02:37.9]} 9... a5 {[%clk 0:03:05.4]} 10.
Nd5 {[%clk 0:02:15.2]} 10... Nxd5 {[%clk 0:03:04.4]} 11. cxd5 {[%clk 0:02:17.1]}
11... Ne7 {[%clk 0:03:05.8]} 12. Nd2 {[%clk 0:02:16.9]} 12... a4 {[%clk
0:03:04.7]} 13. b4 {[%clk 0:01:53.5]} 13... axb3 {[%clk 0:03:04.5]} 14. Rxb3
{[%clk 0:01:54.1]} 14... Ra7 {[%clk 0:02:59]} 15. Nc4 {[%clk 0:01:47]} 15... Bd7
{[%clk 0:02:59.9]} 16. Nb6 {[%clk 0:00:45.9]} 16... Be8 {[%clk 0:02:54.9]} 17.
Qc2 {[%clk 0:00:42.4]} 17... Nc8 {[%clk 0:02:54.3]} 18. Qb1 {[%clk 0:00:42.3]}
18... Nxb6 {[%clk 0:02:49.2]} 19. Rxb6 {[%clk 0:00:44.2]} 19... Qc7 {[%clk
0:02:50.4]} 20. f4 {[%clk 0:00:32.6]} 20... Bd7 {[%clk 0:02:48.8]} 21. fxe5
{[%clk 0:00:22.9]} 21... Bxe5 {[%clk 0:02:48.8]} 22. Bf4 {[%clk 0:00:24.8]}
22... Bxf4 {[%clk 0:02:35]} 23. Rxf4 {[%clk 0:00:24.9]} 23... Rfa8 {[%clk
0:02:36.4]} 24. Rf6 {[%clk 0:00:23.7]} 24... Rxa3 {[%clk 0:02:29.5]} 25. Rxb7
{[%clk 0:00:24.6]} 25... Qd8 {[%clk 0:02:30.4]} 26. Qb2 {[%clk 0:00:23.1]} 26...
Ra2 {[%clk 0:02:25.9]} 27. Qc3 {[%clk 0:00:21.5]} 27... R8a3 {[%clk 0:02:26.6]}
28. Rb3 {[%clk 0:00:21]} 28... Rxb3 {[%clk 0:02:22.2]} 29. Qxb3 {[%clk 0:00:22]}
29... Qxf6 {[%clk 0:02:15.2]} 30. Qxa2 {[%clk 0:00:22.6]} 30... Qd4+ {[%clk
0:02:16.2]} 31. Kf1 {[%clk 0:00:22.8]} 31... h5 {[%clk 0:02:09.1]} 32. Qa7
{[%clk 0:00:23.4]} 32... Bg4 {[%clk 0:02:08.2]} 33. Qb8+ {[%clk 0:00:24.3]}
33... Kg7 {[%clk 0:02:08]} 34. Qxd6 {[%clk 0:00:26.2]} 34... Qe3 {[%clk
0:02:07.3]} 35. Bf3 {[%clk 0:00:20.6]} 35... Bxf3 {[%clk 0:02:08]} 36. exf3
{[%clk 0:00:22.2]} 36... Qxf3+ {[%clk 0:02:09.2]} 37. Kg1 {[%clk 0:00:22.3]}
37... Qe3+ {[%clk 0:02:06.6]} 38. Kg2 {[%clk 0:00:22.8]} 38... Qe2+ {[%clk
0:02:07.8]} 39. Kg1 {[%clk 0:00:23.7]} 39... h4 {[%clk 0:01:57.3]} 40. gxh4
{[%clk 0:00:21.2]} 40... Qg4+ {[%clk 0:01:54.8]} 41. Qg3 {[%clk 0:00:20.3]}
41... Qd4+ {[%clk 0:01:55.6]} 42. Kg2 {[%clk 0:00:18.8]} 42... Qxd5+ {[%clk
0:01:56.6]} 43. Qf3 {[%clk 0:00:20.7]} 43... Qe5 {[%clk 0:01:51.9]} 44. Qg3
{[%clk 0:00:20]} 44... Qe2+ {[%clk 0:01:51.5]} 45. Kh3 {[%clk 0:00:21]} 45...
Qf1+ {[%clk 0:01:46.5]} 46. Qg2 {[%clk 0:00:19.6]} 46... Qxd3+ {[%clk
0:01:47.4]} 47. Kg4 {[%clk 0:00:20.2]} 47... c4 {[%clk 0:01:47.2]} 0-1

[Event "*** Titled Tuesday Blitz"]
[Site "Chess.com"]
[Date "2019.08.06"]
[Round "10"]
[White "2nd_life"]
[Black "farzadbfd"]
[Result "0-1"]
[WhiteElo "2455"]
[BlackElo "2671"]
[TimeControl "180+2"]
[EndTime "15:22:30 PDT"]
[Termination "farzadbfd won by resignation"]

1. e4 {[%clk 0:03:01.9]} 1... e5 {[%clk 0:03:00.8]} 2. f4 {[%clk 0:03:02.3]}
2... Bc5 {[%clk 0:03:01]} 3. Nf3 {[%clk 0:03:03]} 3... d6 {[%clk 0:03:01.6]} 4.
Nc3 {[%clk 0:03:03.4]} 4... Nc6 {[%clk 0:03:02.5]} 5. Bb5 {[%clk 0:02:57]} 5...
Ne7 {[%clk 0:03:03.1]} 6. d3 {[%clk 0:02:56.7]} 6... Bg4 {[%clk 0:03:03.8]} 7.
h3 {[%clk 0:02:56.4]} 7... Bxf3 {[%clk 0:03:01.3]} 8. Qxf3 {[%clk 0:02:57.1]}
8... a6 {[%clk 0:03:03]} 9. Bxc6+ {[%clk 0:02:51.3]} 9... Nxc6 {[%clk
0:03:04.9]} 10. Ne2 {[%clk 0:02:51.8]} 10... Nb4 {[%clk 0:03:01.4]} 11. Kd1
{[%clk 0:02:44.1]} 11... O-O {[%clk 0:02:57.4]} 12. c3 {[%clk 0:02:30.5]} 12...
Nc6 {[%clk 0:02:57.2]} 13. f5 {[%clk 0:02:31.7]} 13... b5 {[%clk 0:02:54.3]} 14.
g4 {[%clk 0:02:23.4]} 14... Qd7 {[%clk 0:02:50.7]} 15. g5 {[%clk 0:02:03.8]}
15... Rfd8 {[%clk 0:02:36.2]} 16. Kc2 {[%clk 0:01:18.8]} 16... b4 {[%clk
0:02:33.1]} 17. c4 {[%clk 0:01:13.5]} 17... a5 {[%clk 0:02:10.9]} 18. f6 {[%clk
0:00:55.8]} 18... a4 {[%clk 0:02:02.8]} 19. Kd1 {[%clk 0:00:50.3]} 19... Nd4
{[%clk 0:01:38.9]} 20. Nxd4 {[%clk 0:00:49.6]} 20... Bxd4 {[%clk 0:01:40.8]} 21.
Rh2 {[%clk 0:00:22.9]} 21... c6 {[%clk 0:01:39.3]} 22. Be3 {[%clk 0:00:22.2]}
22... Bxe3 {[%clk 0:01:35.9]} 23. Qxe3 {[%clk 0:00:23]} 23... d5 {[%clk
0:01:37]} 24. Rd2 {[%clk 0:00:19.4]} 24... Qe6 {[%clk 0:01:19.5]} 25. fxg7
{[%clk 0:00:20.3]} 25... dxc4 {[%clk 0:01:19.3]} 26. dxc4 {[%clk 0:00:20.5]}
26... Qxc4 {[%clk 0:01:13.3]} 27. Qe2 {[%clk 0:00:10.5]} 27... Qe6 {[%clk
0:00:51.1]} 28. Rc1 {[%clk 0:00:06.6]} 28... Qxa2 {[%clk 0:00:49.6]} 29. Rxc6
{[%clk 0:00:06.6]} 29... Qxb2 {[%clk 0:00:44.1]} 30. Rxd8+ {[%clk 0:00:05.1]}
30... Rxd8+ {[%clk 0:00:44.5]} 31. Ke1 {[%clk 0:00:06.6]} 31... a3 {[%clk
0:00:40.4]} 0-1

[Event "*** Titled Tuesday Blitz"]
[Site "Chess.com"]
[Date "2019.08.06"]
[Round "10"]
[White "Schachspielerr"]
[Black "GadimbayliA"]
[Result "1-0"]
[WhiteElo "2680"]
[BlackElo "2866"]
[TimeControl "180+2"]
[EndTime "15:22:40 PDT"]
[Termination "Schachspielerr won by resignation"]

1. d4 {[%clk 0:03:01.9]} 1... Nf6 {[%clk 0:02:59.6]} 2. c4 {[%clk 0:03:02.5]}
2... b6 {[%clk 0:03:00.4]} 3. Nc3 {[%clk 0:03:03.1]} 3... Bb7 {[%clk 0:03:00.4]}
4. d5 {[%clk 0:03:04.3]} 4... e6 {[%clk 0:03:01.4]} 5. e4 {[%clk 0:03:05.3]}
5... exd5 {[%clk 0:02:37.6]} 6. cxd5 {[%clk 0:03:02.7]} 6... Bb4 {[%clk
0:02:37.8]} 7. Bd3 {[%clk 0:02:57.5]} 7... Qe7 {[%clk 0:02:38.1]} 8. Bg5 {[%clk
0:02:38.9]} 8... h6 {[%clk 0:02:14.8]} 9. Bxf6 {[%clk 0:02:36.7]} 9... Qxf6
{[%clk 0:02:16.7]} 10. Ne2 {[%clk 0:02:36.1]} 10... O-O {[%clk 0:02:13.6]} 11.
O-O {[%clk 0:02:37]} 11... Na6 {[%clk 0:02:14.1]} 12. Rc1 {[%clk 0:02:26.8]}
12... Nc5 {[%clk 0:02:06.7]} 13. Bb1 {[%clk 0:02:27.8]} 13... Bxc3 {[%clk
0:02:04.7]} 14. Nxc3 {[%clk 0:02:28]} 14... a5 {[%clk 0:02:02]} 15. Re1 {[%clk
0:02:25.1]} 15... Rfe8 {[%clk 0:02:00.9]} 16. Nb5 {[%clk 0:02:25.1]} 16... Rac8
{[%clk 0:01:50.8]} 17. Qd2 {[%clk 0:02:20.4]} 17... Ba6 {[%clk 0:01:37.7]} 18.
Nc3 {[%clk 0:02:21.2]} 18... c6 {[%clk 0:01:30.7]} 19. Re3 {[%clk 0:02:19.5]}
19... Qg5 {[%clk 0:01:21.1]} 20. Rce1 {[%clk 0:01:53.9]} 20... h5 {[%clk
0:01:09.2]} 21. Qd4 {[%clk 0:01:51.9]} 21... Qe5 {[%clk 0:00:27.3]} 22. Qxe5
{[%clk 0:01:52.7]} 22... Rxe5 {[%clk 0:00:29.2]} 23. f4 {[%clk 0:01:54.4]} 23...
Re7 {[%clk 0:00:30.5]} 24. e5 {[%clk 0:01:54.2]} 24... g6 {[%clk 0:00:30.9]} 25.
f5 {[%clk 0:01:33.1]} 25... f6 {[%clk 0:00:23.7]} 26. fxg6 {[%clk 0:01:17.8]}
26... Rxe5 {[%clk 0:00:16.7]} 27. Rxe5 {[%clk 0:01:18]} 27... fxe5 {[%clk
0:00:18.6]} 28. Rxe5 {[%clk 0:01:19.6]} 28... Rf8 {[%clk 0:00:20.1]} 29. Re1
{[%clk 0:01:13.1]} 29... b5 {[%clk 0:00:17.5]} 30. h3 {[%clk 0:01:00]} 30... b4
{[%clk 0:00:18.3]} 31. Ne4 {[%clk 0:01:01.7]} 31... Nxe4 {[%clk 0:00:11.4]} 32.
Bxe4 {[%clk 0:01:03.6]} 32... cxd5 {[%clk 0:00:06.6]} 33. Bxd5+ {[%clk
0:00:59.8]} 33... Kg7 {[%clk 0:00:08.1]} 34. Bf7 {[%clk 0:00:51.9]} 34... Kf6
{[%clk 0:00:05.9]} 35. Rd1 {[%clk 0:00:46.3]} 35... Rd8 {[%clk 0:00:04.1]} 36.
Rd6+ {[%clk 0:00:46.8]} 1-0